[Event "13th All African Rapid-ch Men 2024"]
[Site "Accra"]
[Date "2024.03.10"]
[Round "1.7"]
[White "Ntamatungiro, Wilfried"]
[Black "Levitan, Caleb Levi"]
[Result "0-1"]
[ECO "B50"]
[WhiteElo "1905"]
[BlackElo "2235"]
[Annotator "TA"]
[PlyCount "122"]
[EventDate "2024.03.07"]
[EventType "rapid"]
[EventCountry "GHA"]
[SourceTitle "playchess.com"]
[Source "ChessBase"]
[SourceQuality "1"]
[TimeControl "900+10"]

{[%evp 22,122,-7,-18,18,21,16,23,18,16,27,33,37,0,0,0,0,-89,-92,-147,-154,-149,-155,-139,-147,-193,-202,-202,-208,-227,-85,-216,-154,-183,-83,-93,-87,-302,-289,-326,-357,-350,-358,-333,-239,-474,-459,-614,-600,-769,-695,-847,-841,-805,-800,-6712,-6479,-6350,-6303,-6283,-6270,-5385,-5373,-1421,-903,-29967,-12798,-29946,-672,-29959,-11814,-29979,-29981,-29981,-29981,-29981,-29981,-29981,-29982,-29983,-29984,-29984,-29985,-29986,-29985,-29986,-29985,-29987,-29987,-29987,-29985,-29985,-29986,-29986,-29987,-29987,-29986,-29987,-29986,-29986,-29986,-29986,-29987]} 1. e4 {[%emt 0:00:02]} c5 {[%emt 0:00:01]} 2. c3 {[%emt 0:00:03]} Nf6 {[%emt 0:00:05]} 3. Bd3 {[%emt 0:00:03]} Nc6 {[%emt 0:00:14]} 4. Bc2 {[%emt 0:00:10]} d6 {[%emt 0:00:23]} 5. h3 {[%emt 0:00:05]} e5 {[%emt 0:00:11]} 6. Nf3 {[%emt 0:00:03]} g6 {[%emt 0:00:09]} 7. O-O {[%emt 0:00:04]} Bg7 {[%emt 0:00:01]} 8. Re1 {[%emt 0:00:02]} O-O {[%emt 0:00:08]} 9. d4 {[%emt 0:00:21]} cxd4 {[%emt 0:00:57]} 10. cxd4 {[%emt 0:00:02]} exd4 {[%emt 0:01:21]} 11. Nxd4 {[%emt 0:00:07]} Nxd4 {[%emt 0:00:25]} 12. Qxd4 {[%emt 0:00:03]} Ng4 {[%emt 0:00:34]} 13. Qd1 {[%emt 0:02:25]} Ne5 {[%emt 0:00:17]} 14. Nc3 {[%emt 0:00:06]} Be6 {[%emt 0:00:27] White has an edge.} (14... Qh4 {feels hotter.} 15. Nd5 Be6 16. Bf4 Rfc8) 15. Bb3 {[%emt 0:02:28]} a5 {[%emt 0:02:27]} 16. Bd5 {[%emt 0:02:13]} Qd7 {[%emt 0:00:42]} 17. Kh2 {[%emt 0:01:13]} Rac8 {[%emt 0:00:33]} 18. Bf4 {[%emt 0:02:03]} b5 {[%emt 0:01:09]} 19. Qd2 {[%emt 0:01:58]} (19. Rc1 $11) 19... Bxh3 $17 {[%emt 0:02:34]} (19... b4 20. Ne2 Bxd5 21. Qxd5) 20. Bxe5 {[%emt 0:00:09]} (20. Rac1 $142) 20... Bxe5+ {[%emt 0:00:01]} 21. f4 {[%emt 0:00:01]} Bxc3 {[%emt 0:00:01]} 22. bxc3 {[%emt 0:00:03]} Be6 {[%emt 0:00:13]} 23. f5 {[%emt 0:00:45]} (23. Bxe6 $17 Qxe6 (23... fxe6 24. Rad1 $17) 24. a4) 23... Bxd5 $19 {[%emt 0:00:28]} (23... gxf5 24. Qg5+ Kh8 25. Qf6+ Kg8 26. exf5 $18) 24. Qxd5 {[%emt 0:00:06]} Rxc3 {[%emt 0:00:38]} 25. Rad1 {[%emt 0:01:07]} Rd8 {[%emt 0:02:12]} (25... Rc2 $19 {has better winning chances. Strongly threatening ...Qe7.} 26. Rf1 Qe7) 26. Rf1 {[%emt 0:00:16]} (26. fxg6 $17 hxg6 27. e5) 26... Qe7 {[%emt 0:00:47]} 27. f6 {[%emt 0:00:07]} Qe6 {[%emt 0:00:44]} (27... Qe8 $19 {is more deadly. And now ...Rc5 would win.} 28. Qg5 Qf8 (28... Qxe4 $2 29. Rde1 $18)) 28. Qg5 {[%emt 0:00:47] [#] Qh6 is the strong threat.} Qe8 {[%emt 0:00:57][%cal Oc3c5]} (28... Qxe4 $2 29. Rde1 $18) 29. Rf4 $2 {[%emt 0:00:19]} (29. e5 $17 {was necessary.}) 29... Rc5 {[%emt 0:00:04]} 30. Rf5 {[%emt 0:01:14]} Rxf5 {[%emt 0:00:28]} (30... Qxe4 $2 {perishes.} 31. Rxc5 (31. Qh6 Qh4+ 32. Qxh4 Rxf5 $18) 31... h5 32. Re5 $18 (32. Rxb5 Rf8 $18)) 31. exf5 {[%emt 0:00:02][%mdl 4096] Endgame. KQR-KQR} Qe5+ {[%emt 0:00:03]} 32. Kg1 {[%emt 0:00:26]} Qxf5 {[%emt 0:00:06]} 33. Qh4 {[%emt 0:00:06]} (33. Qxf5 {was the only chance.} gxf5 34. Rd5) 33... h5 {[%emt 0:00:14]} 34. Rf1 {[%emt 0:00:11]} Qc5+ {[%emt 0:00:27]} 35. Kh1 {[%emt 0:00:17]} Re8 {[%emt 0:00:17]} 36. Qf4 {[%emt 0:00:24]} Kh7 {[%emt 0:00:07] Prevents Qh6+} 37. Qf3 {[%emt 0:00:01]} Qc4 {[%emt 0:00:19][%cal Oe8e1] [#] Threatens to win with ...Re1!} 38. Rd1 {[%emt 0:00:18]} Qh4+ {[%emt 0:00:08]} 39. Kg1 {[%emt 0:00:02]} Re1+ {[%emt 0:00:01]} 40. Rxe1 {[%emt 0:00:04]} Qxe1+ {[%emt 0:00:02] KQ-KQ} 41. Kh2 {[%emt 0:00:01]} Qe5+ {[%emt 0:00:06]} 42. Kg1 {[%emt 0:00:02]} b4 {[%emt 0:00:06] White must now prevent ...Qa1+.} 43. Qa8 {[%emt 0:00:53]} Qd4+ {[%emt 0:00:24]} 44. Kh1 {[%emt 0:00:09]} Qa1+ {[%emt 0:00:04]} 45. Kh2 {[%emt 0:00:07]} Qxf6 {[%emt 0:00:03] ( -> ...Qe5+)} ({Worse is} 45... Qxa2 46. Qf8) 46. Qf8 {[%emt 0:00:59]} a4 {[%emt 0:01:12] Black mates.} 47. Qb8 {[%emt 0:00:11]} Qe5+ {[%emt 0:00:00]} 48. Kh1 {[%emt 0:00:11]} Qd4 {[%emt 0:00:00]} 49. Qc7 {[%emt 0:00:13]} Qd5 {[%emt 0:00:00]} 50. Qc2 {[%emt 0:00:16]} b3 {[%emt 0:00:00]} 51. axb3 {[%emt 0:00:06]} axb3 {[%emt 0:00:00]} 52. Qb2 {[%emt 0:00:01]} Qc4 {[%emt 0:00:00]} 53. Qf6 {[%emt 0:00:05]} h4 {[%emt 0:00:24]} 54. Qb2 {[%emt 0:00:24]} Qc2 {[%emt 0:00:20]} 55. Qf6 {[%emt 0:00:03]} Qf5 {[%emt 0:00:02]} 56. Qb2 {[%emt 0:00:17]} Qd5 {[%emt 0:00:18]} 57. Qf6 {[%emt 0:00:07]} h3 {[%emt 0:00:05][%csl Gh3][%cal Rd5g2]} 58. Qh4+ {[%emt 0:00:13]} Qh5 {[%emt 0:00:02]} 59. Qf2 {[%emt 0:00:08]} hxg2+ {[%emt 0:00:11]} 60. Kxg2 {[%emt 0:00:01]} Qd5+ {[%emt 0:00:05]} 61. Kg1 {[%emt 0:00:08]} Qc5 {[%emt 0:00:01] Weighted Error Value: White=0.81/Black=0.21 (precise) .  Loses game:     	White=1     	---        Mistake:       	White=5     	Black=2      Inaccurate:     	White=2     	---        OK:         	White=6     	Black=12     Best:        	---       	Black=2} 0-1

[Event "13th All African Rapid-ch Men 2024"]
[Site "Accra"]
[Date "2024.03.10"]
[Round "1.8"]
[White "Asabri, Hussien"]
[Black "Fomevor, Cephas Clinton"]
[Result "1/2-1/2"]
[ECO "D15"]
[WhiteElo "2196"]
[BlackElo "1887"]
[Annotator "RC"]
[PlyCount "93"]
[EventDate "2024.03.07"]
[EventType "rapid"]
[EventCountry "GHA"]
[SourceTitle "playchess.com"]
[Source "ChessBase"]
[SourceQuality "1"]
[TimeControl "900+10"]

1. d4 {[%emt 0:00:00]} d5 {[%emt 0:00:01]} 2. Nf3 {[%emt 0:00:02]} Nf6 {[%emt 0:00:02]} 3. c4 {[%emt 0:00:02]} c6 {[%emt 0:00:00]} 4. Nc3 {[%emt 0:00:07]} a6 {[%emt 0:00:02]} 5. c5 {[%emt 0:01:23]} Bf5 {[%emt 0:00:13]} 6. Qb3 {[%emt 0:00:09]} Ra7 {[%emt 0:00:05]} 7. Bf4 {[%emt 0:00:05]} e6 {[%emt 0:00:26]} 8. e3 {[%emt 0:00:06]} Nbd7 {[%emt 0:00:05]} 9. h3 {[%emt 0:00:19]} Be7 {[%emt 0:01:57]} 10. Be2 {[%emt 0:02:14]} O-O {[%emt 0:00:15]} 11. O-O {[%emt 0:00:17]} Ne4 {[%emt 0:00:14]} 12. Rfc1 {[%emt 0:01:16]} Re8 {[%emt 0:00:49]} 13. Qd1 {[%emt 0:00:14]} Bf6 {[%emt 0:00:45]} 14. Bh2 {[%emt 0:01:42]} e5 {[%emt 0:00:38]} 15. Nxe4 {[%emt 0:01:02]} Bxe4 {[%emt 0:00:47]} 16. b4 {[%emt 0:01:03]} exd4 {[%emt 0:00:46]} 17. exd4 {[%emt 0:00:11]} Ra8 {[%emt 0:01:43]} 18. a4 {[%emt 0:00:49]} Nf8 {[%emt 0:00:27]} 19. Ne5 {[%emt 0:03:01]} Ng6 {[%emt 0:01:33]} 20. Nf3 {[%emt 0:01:53]} h6 {[%emt 0:02:12]} 21. b5 {[%emt 0:00:26]} axb5 {[%emt 0:00:39]} 22. axb5 {[%emt 0:00:06]} Ra5 {[%emt 0:01:08]} 23. b6 {[%emt 0:00:45]} Qa8 {[%emt 0:00:45]} 24. Bg3 {[%emt 0:00:19]} Ne7 {[%emt 0:01:04]} 25. Ne5 {[%emt 0:01:16]} Nf5 {[%emt 0:00:17]} 26. Bh2 {[%emt 0:00:22]} Nh4 {[%emt 0:01:55]} 27. f3 {[%emt 0:00:12]} Bh7 {[%emt 0:00:20]} 28. Qe1 {[%emt 0:00:14]} Ra3 {[%emt 0:00:19]} 29. Bf4 {[%emt 0:00:09]} Nf5 {[%emt 0:00:13]} 30. Qd1 {[%emt 0:00:10]} g5 {[%emt 0:00:06]} 31. Bh2 {[%emt 0:00:05]} Ne3 {[%emt 0:00:14]} 32. Qe1 {[%emt 0:00:15]} Nf5 {[%emt 0:00:15]} 33. Bd3 {[%emt 0:00:09]} Nxd4 {[%emt 0:00:10]} 34. Bxh7+ {[%emt 0:00:09]} Kxh7 {[%emt 0:00:00]} 35. Qd1 {[%emt 0:00:07]} Bxe5 {[%emt 0:00:13]} 36. Bxe5 {[%emt 0:00:05]} Rxe5 {[%emt 0:00:02]} 37. Qxd4 {[%emt 0:00:02]} Re6 {[%emt 0:00:23]} 38. Kh2 {[%emt 0:00:44]} Qb8+ {[%emt 0:00:04]} 39. Kh1 {[%emt 0:00:00]} Rxa1 {[%emt 0:00:17]} 40. Rxa1 {[%emt 0:00:00]} Qe8 {[%emt 0:00:03]} 41. Ra7 {[%emt 0:00:00]} Re1+ {[%emt 0:00:03]} 42. Kh2 {[%emt 0:00:00]} Qb8+ {[%emt 0:00:03]} 43. g3 {[%emt 0:00:00]} Re2+ {[%emt 0:00:47]} 44. Kh1 {[%emt 0:00:00]} Qe8 {[%emt 0:00:00]} 45. Qd3+ {[%emt 0:00:03]} Kg8 {[%emt 0:00:00]} 46. Rxb7 {[%emt 0:00:31]} Re1+ {[%emt 0:00:00]} 47. Kg2 {[%emt 0:00:01]} 1/2-1/2

[Event "13th All African Rapid-ch Men 2024"]
[Site "Accra"]
[Date "2024.03.10"]
[Round "1.9"]
[White "Frempong-Smart Daniel"]
[Black "Paiva, Donaldo"]
[Result "0-1"]
[ECO "D02"]
[WhiteElo "1877"]
[BlackElo "2172"]
[Annotator "RC"]
[PlyCount "92"]
[EventDate "2024.03.07"]
[EventType "rapid"]
[EventCountry "GHA"]
[SourceTitle "playchess.com"]
[Source "ChessBase"]
[SourceQuality "1"]
[TimeControl "900+10"]

1. d4 {[%emt 0:00:03]} Nf6 {[%emt 0:00:01]} 2. Nf3 {[%emt 0:00:02]} d5 {[%emt 0:00:02]} 3. g3 {[%emt 0:00:02]} Bg4 {[%emt 0:00:06]} 4. Bg2 {[%emt 0:00:06]} c6 {[%emt 0:00:06]} 5. O-O {[%emt 0:00:05]} e6 {[%emt 0:00:03]} 6. Ne5 {[%emt 0:00:37]} Bf5 {[%emt 0:00:02]} 7. c4 {[%emt 0:00:07]} Nbd7 {[%emt 0:00:02]} 8. cxd5 {[%emt 0:00:03]} exd5 {[%emt 0:00:07]} 9. Nxd7 {[%emt 0:00:38]} Qxd7 {[%emt 0:00:03]} 10. Nc3 {[%emt 0:00:07]} Be7 {[%emt 0:00:24]} 11. Bf4 {[%emt 0:00:15]} O-O {[%emt 0:00:05]} 12. a3 {[%emt 0:00:11]} Rfe8 {[%emt 0:00:57]} 13. Re1 {[%emt 0:00:25]} Bf8 {[%emt 0:00:05]} 14. b4 {[%emt 0:00:07]} b5 {[%emt 0:00:08]} 15. Bg5 {[%emt 0:00:52]} Ne4 {[%emt 0:00:23]} 16. Nxe4 {[%emt 0:00:05]} Bxe4 {[%emt 0:00:02]} 17. Bxe4 {[%emt 0:02:24]} Rxe4 {[%emt 0:00:02]} 18. Kg2 {[%emt 0:04:40]} a5 {[%emt 0:01:45]} 19. Qd2 {[%emt 0:01:21]} Qa7 {[%emt 0:00:56]} 20. Be3 {[%emt 0:01:44]} axb4 {[%emt 0:00:24]} 21. axb4 {[%emt 0:00:09]} Qxa1 {[%emt 0:00:03]} 22. Rxa1 {[%emt 0:00:02]} Rxa1 {[%emt 0:00:02]} 23. Qc3 {[%emt 0:00:04]} Ra6 {[%emt 0:00:02]} 24. f3 {[%emt 0:00:06]} Re6 {[%emt 0:00:01]} 25. Kf2 {[%emt 0:01:27]} Ra4 {[%emt 0:00:06]} 26. Bf4 {[%emt 0:00:15]} Bxb4 {[%emt 0:00:12]} 27. Qc2 {[%emt 0:00:13]} Bf8 {[%emt 0:00:36]} 28. e3 {[%emt 0:00:51]} h6 {[%emt 0:00:13]} 29. h4 {[%emt 0:00:05]} Ra3 {[%emt 0:00:15]} 30. g4 {[%emt 0:00:09]} b4 {[%emt 0:00:03]} 31. Kg3 {[%emt 0:00:03]} Ra5 {[%emt 0:01:13]} 32. e4 {[%emt 0:00:21]} dxe4 {[%emt 0:00:44]} 33. fxe4 {[%emt 0:00:02]} Ra3+ {[%emt 0:00:01]} 34. Kg2 {[%emt 0:00:28]} Rc3 {[%emt 0:00:38]} 35. Qb1 {[%emt 0:00:30]} Rc4 {[%emt 0:00:41]} 36. Be3 {[%emt 0:00:28]} c5 {[%emt 0:00:05]} 37. Qd3 {[%emt 0:01:08]} Rc3 {[%emt 0:00:06]} 38. Qd2 {[%emt 0:00:11]} Rxe4 {[%emt 0:00:06]} 39. Bf2 {[%emt 0:00:07]} Rxg4+ {[%emt 0:00:04]} 40. Kf1 {[%emt 0:00:01]} cxd4 {[%emt 0:00:25]} 41. Bxd4 {[%emt 0:00:04]} Rf3+ {[%emt 0:00:16]} 42. Ke1 {[%emt 0:00:16]} b3 {[%emt 0:00:20]} 43. Qe2 {[%emt 0:00:24]} Rxd4 {[%emt 0:01:23]} 44. Qxf3 {[%emt 0:00:04]} b2 {[%emt 0:00:02]} 45. Qf5 {[%emt 0:00:21]} Ra4 {[%emt 0:00:05]} 46. Qc2 {[%emt 0:00:47]} Ra1+ {[%emt 0:00:03]} 0-1

[Event "13th All African Rapid-ch Men 2024"]
[Site "Accra"]
[Date "2024.03.10"]
[Round "1.10"]
[White "Zhemba, Jemusse"]
[Black "Pedro Manuel Envo Engonga Avom"]
[Result "1-0"]
[ECO "C01"]
[WhiteElo "2226"]
[BlackElo "1702"]
[Annotator "RC"]
[PlyCount "65"]
[EventDate "2024.03.07"]
[EventType "rapid"]
[EventCountry "GHA"]
[SourceTitle "playchess.com"]
[Source "ChessBase"]
[SourceQuality "1"]
[TimeControl "900+10"]

1. d4 {[%emt 0:00:03]} d5 {[%emt 0:00:00]} 2. c4 {[%emt 0:00:01]} e5 {[%emt 0:00:00]} 3. e3 {[%emt 0:00:12]} exd4 {[%emt 0:00:12]} 4. exd4 {[%emt 0:00:28]} Bb4+ {[%emt 0:00:28]} 5. Nc3 {[%emt 0:00:10]} Qe7+ {[%emt 0:00:15]} 6. Be3 {[%emt 0:00:16]} Nf6 {[%emt 0:00:14]} 7. h3 {[%emt 0:00:33]} dxc4 {[%emt 0:01:02]} 8. Bxc4 {[%emt 0:00:16]} O-O {[%emt 0:00:19]} 9. Nf3 {[%emt 0:00:04]} Ne4 {[%emt 0:00:13]} 10. O-O {[%emt 0:00:56]} Nxc3 {[%emt 0:02:21]} 11. bxc3 {[%emt 0:00:04]} Bxc3 {[%emt 0:00:02]} 12. Rb1 {[%emt 0:00:11]} Ba5 {[%emt 0:00:51]} 13. Rb5 {[%emt 0:00:24]} b6 {[%emt 0:00:41]} 14. Qd3 {[%emt 0:01:11]} Ba6 {[%emt 0:00:57]} 15. Rh5 {[%emt 0:00:20]} g6 {[%emt 0:00:56]} 16. Re5 {[%emt 0:00:04]} Bxc4 {[%emt 0:00:39]} 17. Qxc4 {[%emt 0:00:03]} Qd7 {[%emt 0:01:00]} 18. Bh6 {[%emt 0:00:33]} Rc8 {[%emt 0:01:01]} 19. d5 {[%emt 0:00:17]} Qd6 {[%emt 0:01:56]} 20. Qd4 {[%emt 0:00:50]} f6 {[%emt 0:04:27]} 21. Re6 {[%emt 0:00:23]} Qd7 {[%emt 0:00:01]} 22. Rxf6 {[%emt 0:00:39]} c5 {[%emt 0:00:54]} 23. Qc4 {[%emt 0:01:18]} b5 {[%emt 0:00:03]} 24. Qf4 {[%emt 0:00:02]} Qe7 {[%emt 0:00:25]} 25. d6 {[%emt 0:00:31]} Qe8 {[%emt 0:00:12]} 26. Rf8+ {[%emt 0:01:16]} Qxf8 {[%emt 0:00:02]} 27. Bxf8 {[%emt 0:00:02]} Rxf8 {[%emt 0:00:01]} 28. Qe4 {[%emt 0:00:07]} Na6 {[%emt 0:00:07]} 29. a4 {[%emt 0:00:16]} Nb4 {[%emt 0:00:29]} 30. Qe6+ {[%emt 0:00:06]} Kg7 {[%emt 0:00:07]} 31. Qe5+ {[%emt 0:00:08]} Kg8 {[%emt 0:00:04]} 32. Qxc5 {[%emt 0:00:06]} Nd3 {[%emt 0:00:31]} 33. Qd5+ {[%emt 0:00:10]} 1-0

[Event "13th All African Rapid-ch Men 2024"]
[Site "Accra"]
[Date "2024.03.10"]
[Round "2.1"]
[White "Amin, Bassem"]
[Black "Mwali, Chitumbo"]
[Result "1-0"]
[ECO "A43"]
[WhiteElo "2670"]
[BlackElo "2340"]
[Annotator "TA"]
[PlyCount "77"]
[EventDate "2024.03.07"]
[EventType "rapid"]
[EventCountry "GHA"]
[SourceTitle "playchess.com"]
[Source "ChessBase"]
[SourceQuality "1"]
[TimeControl "900+10"]

{[%evp 13,77,24,27,25,34,38,47,47,70,55,54,62,75,77,62,70,91,89,108,82,106,71,79,68,92,70,108,71,87,61,77,71,67,37,64,0,120,119,162,146,143,139,137,75,87,77,79,81,99,94,92,79,94,92,182,203,884,903,1189,643,787,641,685,-1048,804,556]} 1. Nf3 {[%emt 0:00:03]} Nf6 {[%emt 0:00:08]} 2. g3 {[%emt 0:00:02]} g6 {[%emt 0:00:03]} 3. Bg2 {[%emt 0:00:19]} Bg7 {[%emt 0:00:01]} 4. O-O {[%emt 0:00:02]} O-O {[%emt 0:00:02]} 5. d4 {[%emt 0:00:17]} c5 {[%emt 0:00:31]} 6. d5 {[%emt 0:01:09]} d6 {[%emt 0:00:03]} 7. Nc3 {[%emt 0:00:42]} Na6 {[%emt 0:00:42]} 8. Re1 {[%emt 0:00:22]} Nc7 {[%emt 0:00:31]} 9. a4 {[%emt 0:00:53]} Rb8 {[%emt 0:00:32]} 10. e4 {[%emt 0:00:02] White is slightly better.} Bg4 {[%emt 0:00:01]} 11. h3 {[%emt 0:00:20]} Bxf3 {[%emt 0:00:01]} 12. Qxf3 {[%emt 0:00:02]} Nd7 {[%emt 0:00:14]} 13. Qe2 {[%emt 0:00:02] White is more active.} a6 {[%emt 0:00:01]} 14. a5 {[%emt 0:00:17]} b5 {[%emt 0:00:06]} 15. axb6 {[%emt 0:00:07]} Rxb6 {[%emt 0:00:06]} 16. Na4 {[%emt 0:01:57]} Rb8 {[%emt 0:01:56]} 17. Ra2 {[%emt 0:00:19]} Nb5 {[%emt 0:01:54]} 18. c3 {[%emt 0:00:02]} Qc7 {[%emt 0:00:21]} 19. f4 {[%emt 0:00:11]} c4 {[%emt 0:01:24]} 20. Be3 {[%emt 0:00:05]} Rfe8 {[%emt 0:01:06]} 21. g4 {[%emt 0:01:43]} e6 {[%emt 0:00:57]} 22. dxe6 {[%emt 0:00:08]} Rxe6 {[%emt 0:00:02]} 23. g5 {[%emt 0:00:33]} Rbe8 {[%emt 0:00:36][%cal Od6d5]} 24. Qf2 {[%emt 0:00:16]} (24. Raa1 $14) 24... Rb8 {[%emt 0:03:19]} (24... Rxe4 $11 {remains equal.} 25. Bxe4 Rxe4) 25. Raa1 $16 {[%emt 0:00:30]} Kh8 {[%emt 0:00:29]} 26. h4 {[%emt 0:00:08]} f6 {[%emt 0:00:49]} 27. f5 {[%emt 0:04:21]} Re7 {[%emt 0:00:20] [#]} 28. h5 {[%emt 0:00:09]} fxg5 {[%emt 0:02:00]} 29. Bxg5 {[%emt 0:00:59] This pair of bishops is nice.} ({Reject} 29. hxg6 $6 Bf6 $11) 29... Bf6 {[%emt 0:00:15]} 30. Bxf6+ {[%emt 0:00:26]} Nxf6 {[%emt 0:00:01]} 31. hxg6 {[%emt 0:00:05]} hxg6 {[%emt 0:00:35]} 32. Qh4+ {[%emt 0:00:17]} ({But not} 32. fxg6 Kg7 33. Rf1 Ng4 $11) 32... Kg7 {[%emt 0:00:01]} 33. Qg5 $36 {[%emt 0:00:01][%mdl 2048] White is in control.} Qa7+ {[%emt 0:00:19]} (33... Nh7 $16 34. Qxg6+ Kh8) 34. Kf1 $18 {[%emt 0:00:08]} Ng4 $2 (34... Rf8 35. Qxg6+ (35. fxg6 {leads to mate.} Nxe4+) 35... Kh8) 35. Qxg4 {[%emt 0:01:19]} Rf8 {[%emt 0:00:31]} 36. Qg3 {[%emt 0:00:43]} Kh8 {[%emt 0:00:07]} 37. Re2 {[%emt 0:00:28]} Rg7 {[#]} 38. Qxg6 $4 {[%emt 0:00:03][%mdl 8192]} Rfg8 $4 {[%emt 0:00:25][%mdl 8192]} (38... Rxg6 $19 39. Rf2 Rg3) 39. Qh6+ {[%emt 0:00:17] Weighted Error Value: White=0.58/Black=0.26 (precise) .  Mistake:       	White=2     	Black=3      Inaccurate:     	White=3     	Black=4      OK:         	White=12    	Black=7      Best:        	White=3     	Black=1} 1-0

[Event "13th All African Rapid-ch Men 2024"]
[Site "Accra"]
[Date "2024.03.10"]
[Round "2.2"]
[White "Arab, Adlane"]
[Black "Zhemba, Jemusse"]
[Result "1-0"]
[ECO "E11"]
[WhiteElo "2477"]
[BlackElo "2226"]
[Annotator "RC"]
[PlyCount "117"]
[EventDate "2024.03.07"]
[EventType "rapid"]
[EventCountry "GHA"]
[SourceTitle "playchess.com"]
[Source "ChessBase"]
[SourceQuality "1"]
[TimeControl "900+10"]

1. d4 {[%emt 0:00:03]} Nf6 {[%emt 0:00:03]} 2. c4 {[%emt 0:00:02]} e6 {[%emt 0:00:12]} 3. Nf3 {[%emt 0:00:05]} Bb4+ {[%emt 0:00:16]} 4. Bd2 {[%emt 0:00:11]} Qe7 {[%emt 0:00:14]} 5. g3 {[%emt 0:00:13]} Nc6 {[%emt 0:00:36]} 6. Nc3 {[%emt 0:00:12]} Bxc3 {[%emt 0:00:08]} 7. Bxc3 {[%emt 0:00:03]} d5 {[%emt 0:00:14]} 8. Bg2 {[%emt 0:00:18]} Ne4 {[%emt 0:00:04]} 9. Qb3 {[%emt 0:01:01]} Nxc3 {[%emt 0:01:09]} 10. Qxc3 {[%emt 0:00:04]} O-O {[%emt 0:00:45]} 11. O-O {[%emt 0:00:12]} a5 {[%emt 0:00:10]} 12. a3 {[%emt 0:00:47]} a4 {[%emt 0:00:26]} 13. Rac1 {[%emt 0:00:05]} Bd7 {[%emt 0:00:27]} 14. e3 {[%emt 0:00:37]} Rfc8 {[%emt 0:00:17]} 15. cxd5 {[%emt 0:00:49]} exd5 {[%emt 0:00:04]} 16. Qc5 {[%emt 0:01:06]} Qxc5 {[%emt 0:00:45]} 17. Rxc5 {[%emt 0:00:02]} Ne7 {[%emt 0:00:07]} 18. Ne5 {[%emt 0:00:10]} Be6 {[%emt 0:00:10]} 19. Rfc1 {[%emt 0:00:06]} c6 {[%emt 0:00:06]} 20. Nd3 {[%emt 0:00:15]} Bf5 {[%emt 0:00:11]} 21. Nb4 {[%emt 0:00:04]} Rd8 {[%emt 0:00:08]} 22. f3 {[%emt 0:00:20]} Be6 {[%emt 0:00:09]} 23. R5c3 {[%emt 0:00:11]} Nc8 {[%emt 0:00:19]} 24. Kf2 {[%emt 0:00:19]} Nd6 {[%emt 0:00:09]} 25. Bf1 {[%emt 0:00:07]} Re8 {[%emt 0:00:07]} 26. Nd3 {[%emt 0:00:58]} Bf5 {[%emt 0:00:58]} 27. Nc5 {[%emt 0:00:35]} Re7 {[%emt 0:00:15]} 28. b3 {[%emt 0:01:05]} axb3 {[%emt 0:01:06]} 29. Rxb3 {[%emt 0:00:02]} b5 {[%emt 0:00:01]} 30. g4 {[%emt 0:00:55]} Bg6 {[%emt 0:00:23]} 31. a4 {[%emt 0:00:43]} bxa4 {[%emt 0:00:13]} 32. Ra3 {[%emt 0:00:01]} Rb8 {[%emt 0:01:48]} 33. Nxa4 {[%emt 0:00:07]} Ra7 {[%emt 0:01:44]} 34. Rxc6 {[%emt 0:00:19]} Nc4 {[%emt 0:00:02]} 35. Bxc4 {[%emt 0:00:43]} dxc4 {[%emt 0:00:01]} 36. Rxc4 {[%emt 0:00:02]} f5 {[%emt 0:00:01]} 37. Rac3 {[%emt 0:01:07]} fxg4 {[%emt 0:00:10]} 38. Rc8+ {[%emt 0:00:45]} Rxc8 {[%emt 0:00:02]} 39. Rxc8+ {[%emt 0:00:01]} Kf7 {[%emt 0:00:01]} 40. Nc5 {[%emt 0:00:19]} Bf5 {[%emt 0:01:17]} 41. Rb8 {[%emt 0:00:12]} Ra2+ {[%emt 0:00:10]} 42. Kg3 {[%emt 0:00:01]} gxf3 {[%emt 0:00:02]} 43. Kxf3 {[%emt 0:00:05]} Rxh2 {[%emt 0:02:13]} 44. e4 {[%emt 0:00:01]} Bh3 {[%emt 0:00:51]} 45. d5 {[%emt 0:01:44]} Rc2 {[%emt 0:00:28]} 46. Rb7+ {[%emt 0:00:14]} Kf6 {[%emt 0:01:11]} 47. Rc7 {[%emt 0:00:03]} Rd2 {[%emt 0:00:20]} 48. Ke3 {[%emt 0:00:12]} Rd1 {[%emt 0:00:13]} 49. Nd3 {[%emt 0:00:09]} Bf1 {[%emt 0:00:44]} 50. Rc6+ {[%emt 0:01:19]} Kg5 {[%emt 0:00:45]} 51. Ne5 {[%emt 0:00:07]} Bg2 {[%emt 0:00:28]} 52. Nd3 {[%emt 0:00:46]} Bf1 {[%emt 0:00:13]} 53. Nb2 {[%emt 0:00:35]} Re1+ {[%emt 0:00:15]} 54. Kd4 {[%emt 0:00:08]} Bg2 {[%emt 0:00:06]} 55. Re6 {[%emt 0:00:19]} Re2 {[%emt 0:00:05]} 56. Nd3 {[%emt 0:00:08]} h5 {[%emt 0:00:06]} 57. d6 {[%emt 0:00:10]} Ra2 {[%emt 0:00:16]} 58. d7 {[%emt 0:00:08]} Ra4+ {[%emt 0:00:12]} 59. Ke3 {[%emt 0:00:08]} 1-0